Cogmind - Beta 12 @@@ ROGUE MODE // 2023.03.13 @ 21:30:42 Player: Heclapar Result: Self-destructed Performance ------------- Evolutions (3) 1500 Regions Visited (10) 2000 Robots Destroyed (120) 600 Value Destroyed (5576) 5576 Prototype IDs (34) 680 Alien Tech Used (0) 0 Bonus (2083) 2083 TOTAL SCORE: 12439 Bonus ------- High Alert Combat Kills 544 Follower Combat Kills 251 Entered Garrisons 400 Used RIF Installer 1000 Aligned with FarCom 300 Friendly Fire -412 Cogmind --------- Core Integrity 296/700 Matter 300/300 Energy 58/100 System Corruption 4% Temperature Cool (0) Movement Core (1650) Ox32 Location -7/Factory Parts ------- > --- POWER (1) -------- (None) > --- PROPULSION (4) --- (None) > --- UTILITY (6) ------ Improved Heat Sink Advanced Heat Sink Huge Storage Unit Improved Medium Armor Plating > --- WEAPON (2) ------- Advanced Plasma Cannon > --- INVENTORY (25) --- Reinforced Quantum Reactor Improved Heat Sink Superbattery (1500) Target Analyzer Kinecellerator Hacking Suite Relay Coupler [NC] (28) Relay Coupler [Grunt] (27) Relay Coupler [Grunt] (33) Relay Coupler [Grunt] (37) Beamcaster Heavy Machine Gun Heavy Machine Gun Heavy Flak Cannon Heavy Flak Cannon Heavy Flak Cannon Heavy Flak Cannon Advanced EMP Blaster Improved Proton Missile Launcher Remote Datajack Power Maul Peak State ------------ > --- POWER ------------ Reinforced Quantum Reactor > --- PROPULSION ------- Light Treads Light Treads Armored Treads Advanced Treads > --- UTILITY ---------- Huge Storage Unit Advanced Terrain Scan Processor Kinecellerator Improved Heavy Armor Plating Improved Shield Generator > --- WEAPON ----------- Heavy Flak Cannon Heavy Flak Cannon > --- INVENTORY -------- Light Deuterium Engine Light Treads Improved Heat Sink Advanced Heat Sink Coolant Injector Superbattery Improved Terrain Scanner Improved Light Armor Plating Hacking Suite Relay Coupler [Grunt] Relay Coupler [Grunt] Heavy Particle Gun Precision Beam Rifle Gatling Laser Gatling Laser Beamcaster Heavy Ion Cannon Flak Gun Heavy Machine Gun Heavy Machine Gun Heavy Flak Cannon Advanced EMP Blaster Improved Proton Missile Launcher Remote Datajack Power Maul [Rating: 60] Favorites ----------- Power Ion Engine Engine Ion Engine Power Core Nuclear Core Reactor Reinforced Quantum Reactor Propulsion Light Treads Treads Light Treads Leg Aluminum Leg Wheel Wheel Utility Huge Storage Unit Device Improved Shield Generator Storage Huge Storage Unit Processor Advanced Terrain Scan Processor Hackware Relay Coupler [NC] Protection Hardened Light Armor Plating Weapon Heavy Ion Cannon Energy Gun Spread Laser Energy Cannon Heavy Ion Cannon Ballistic Gun Light Assault Rifle Ballistic Cannon Heavy Flak Cannon Launcher Improved Proton Missile Launcher Special Weapon Remote Datajack Impact Weapon Power Maul Build | -11 -10 -10 -10 -9 -8 -8 -8 -7 -7 -7 ------- Run | Jun Mat Min Exi Min Mat Gar Mat Fac Gar Fac Slots Evolved 6 | . . . . . 4 . . 2 . . Power . | . . . . . . . . . . . Propulsion 2 | . . . . . 2 . . . . . Utility 4 | . . . . . 2 . . 2 . . Weapon . | . . . . . . . . . . . Parts Attached 177 | . 15 . 1 5 34 19 35 7 44 17 Power 10 | . . . . 1 2 3 1 . 2 1 Engine 5 | . . . . 1 1 2 . . 1 . Core 4 | . . . . . 1 1 1 . . 1 Reactor 1 | . . . . . . . . . 1 . Propulsion 42 | . 2 . . 2 9 12 11 . 5 1 Treads 24 | . 2 . . . . 5 11 . 5 1 Leg 15 | . . . . . 8 7 . . . . Wheel 3 | . . . . 2 1 . . . . . Hover . | . . . . . . . . . . . Flight . | . . . . . . . . . . . Utility 50 | . 7 . 1 1 7 2 8 5 11 8 Device 24 | . 3 . . 1 3 . 3 3 5 6 Storage 4 | . 2 . 1 . . . 1 . . . Processor 2 | . . . . . 1 . . 1 . . Hackware 3 | . . . . . . 1 2 . . . Protection 17 | . 2 . . . 3 1 2 1 6 2 Artifact . | . . . . . . . . . . . Weapon 75 | . 6 . . 1 16 2 15 2 26 7 Energy Gun 17 | . 4 . . 1 8 . 3 . 1 . Energy Cannon 25 | . . . . . 3 1 8 1 8 4 Ballistic Gun 6 | . 2 . . . 2 . 1 . 1 . Ballistic Cannon 7 | . . . . . . . . . 6 1 Launcher 14 | . . . . . 3 . 1 . 8 2 Special Weapon 3 | . . . . . . 1 2 . . . Impact Weapon 3 | . . . . . . . . 1 2 . Slashing Weapon . | . . . . . . . . . . . Piercing Weapon . | . . . . . . . . . . . Special Melee Weapon . | . . . . . . . . . . . Unidentified Prototypes 7 | . . . . . 1 . 5 . . 1 Parts Lost 47 | . . . . 4 11 4 6 . 11 11 Power 8 | . . . . 1 2 2 1 . 1 1 Propulsion 20 | . . . . 2 5 1 3 . 4 5 Utility 11 | . . . . . 1 1 1 . 4 4 Weapon 8 | . . . . 1 3 . 1 . 2 1 Highest Loss Streak 10 | . . . . 4 4 3 2 . 6 10 To Critical Strikes . | . . . . . . . . . . . Average Slot Usage (%) 97 | . 99 100 100 95 97 98 99 99 96 91 Engine 5 | . 14 14 14 12 5 3 6 . 1 . Core 3 | . . . . . 3 5 2 7 2 4 Treads 23 | . 23 28 28 18 . 6 35 30 29 29 Leg 7 | . 4 . . . 24 28 . . . . Wheel 1 | . . . . 7 9 . . . . . Device 10 | . 3 . . 6 12 9 9 19 14 16 Storage 9 | . 14 14 14 14 9 9 9 7 7 7 Processor 4 | . . . . . 5 9 . 2 7 5 Hackware 2 | . . . . . . . 7 7 3 . Protection 8 | . 10 14 14 7 8 8 8 7 7 7 Energy Gun 5 | . 18 28 28 27 14 . . . 1 . Energy Cannon 9 | . . . . . . 18 17 13 7 6 Ballistic Gun 1 | . 9 . . . 1 . . . . . Ballistic Cannon 1 | . . . . . . . . . 4 3 Naked Turns . | . . . . . . . . . . . Heaviest Build 149 | 13 36 36 56 56 65 80 118 115 149 144 Greatest Support 92 | 20 40 40 40 40 50 80 92 92 92 82 Greatest Overweight (x) 5 | . . . 1 5 3 2 1 1 1 5 Average Overweight (x) . | . . . . 2 1 . . 1 1 1 Largest Inventory Capacity 25 | . 15 15 20 20 20 20 25 25 25 25 Average Capacity 21 | . 12 15 15 20 20 20 22 25 25 25 Most Carried 25 | . 15 15 15 16 20 20 25 25 25 25 Average Carried 19 | . 9 15 14 14 16 19 21 24 23 24 Final Capacity 25 | 8 15 15 20 20 20 20 25 25 25 25 Final Carried 25 | 6 15 15 15 16 20 20 25 25 25 21 Class Distribution -------------------- 41% | Mutant 38% | Scavenger-Mutant 9% | Bothacker-Mutant 7% | Skirmisher Dominant Class ---------------- Mutant | -10/Materials Mutant | -10/Mines Mutant | -10/Exiles Mutant | -9/Mines Scavenger-Mutant | -8/Materials Scavenger-Mutant | -8/Garrison Scavenger-Mutant | -8/Materials Skirmisher | -7/Factory Mutant | -7/Garrison Bothacker-Mutant | -7/Factory Resources | -11 -10 -10 -10 -9 -8 -8 -8 -7 -7 -7 ----------- Run | Jun Mat Min Exi Min Mat Gar Mat Fac Gar Fac Matter Collected 2360 | 200 150 . . 70 446 260 360 48 477 349 Remotely . | . . . . . . . . . . . Salvage Created 5080 | . 291 . . 85 1165 388 1365 48 1385 353 Parts 246 | . 17 . . 6 61 27 54 4 61 16 Haulers Intercepted 5 | . . . . . . . 5 . . . Recyclers Shooed 2 | . . . . . 1 . 1 . . . Parts Field Recycled . | . . . . . . . . . . . Retrieved Matter . | . . . . . . . . . . . Parts Self-Destructed . | . . . . . . . . . . . Prevented . | . . . . . . . . . . . Kills | -11 -10 -10 -10 -9 -8 -8 -8 -7 -7 -7 ------- Run | Jun Mat Min Exi Min Mat Gar Mat Fac Gar Fac Combat Hostiles Destroyed 106 | . 11 . . 6 29 6 20 1 27 6 Melee 1 | . 1 . . . . . . . . . Guns 35 | . 10 . . 6 18 . . . 1 . Cannons 46 | . . . . . . 6 19 1 15 5 AOE 19 | . . . . . 11 . . . 8 . Classes Destroyed 15 | . 2 . . 1 5 2 3 . 1 1 Worker 1 | . . . . . 1 . . . . . Builder 3 | . . . . . 3 . . . . . Hauler 5 | . . . . . . . 5 . . . Recycler 3 | . . . . . 3 . . . . . Mechanic 1 | . . . . . . . . . . 1 Watcher 1 | . . . . . 1 . . . . . Swarmer 20 | . 6 . . . 3 . . . 11 . Grunt 60 | . 5 . . 3 20 3 13 . 12 4 Brawler 1 | . . . . . . . . . 1 . Duelist 1 | . . . . . . . 1 . . . Sentry 18 | . . . . . 6 1 5 . 6 . Hunter 1 | . . . . . . . 1 . . . Programmer 4 | . . . . . . 1 . 1 . 2 Behemoth 1 | . . . . . . 1 . . . . Assembled 3 | . . . . 3 . . . . . . Best Kill Streak 13 | . 5 . . 3 13 2 3 1 4 5 Combat Bots Only 6 | . 5 . . 3 6 2 3 1 4 4 Max Kills in Single Turn 4 | . 1 . . 1 4 1 1 1 3 2 Gunslinging . | . . . . . . . . . . . Exploded 3 | . . . . . 3 . . . 3 . Melee 1 | . 1 . . . . . . . . . Uniques/NPCs Destroyed . | . . . . . . . . . . . Combat | -11 -10 -10 -10 -9 -8 -8 -8 -7 -7 -7 -------- Run | Jun Mat Min Exi Min Mat Gar Mat Fac Gar Fac Damage Taken 9098 | . 603 . . 518 1579 921 1424 31 1598 2424 Core 1113 | . 57 . . 161 255 91 145 . 90 314 Absorbed by Shields 681 | . . . . . . . 44 . 256 381 Core Remaining (%) 40 | 100 . . . 12 . . 10 . . . Volleys Fired 369 | . 49 . . 16 81 47 80 1 78 17 Largest 2 | . 2 . . 2 2 2 2 2 2 2 Hottest 196 | . 130 . . 130 130 130 130 130 140 196 Shots Fired 644 | . 79 . . 29 139 83 151 2 131 30 Gun 276 | . 79 . . 29 122 . 8 . 38 . Cannon 325 | . . . . . . 82 137 2 76 28 Launcher 36 | . . . . . 17 . . . 17 2 Special 7 | . . . . . . 1 6 . . . Kinetic 74 | . 30 . . . 17 . . . 13 14 Thermal 520 | . 42 . . 29 105 82 145 2 101 14 Explosive 17 | . . . . . 17 . . . . . Electromagnetic 26 | . 7 . . . . . . . 17 2 Robot Hit Streak 16 | . 6 . . 8 16 16 13 1 13 5 Robot Miss Streak 7 | . 5 . . 7 4 3 4 . 5 6 Penetration Max . | . . . . . . . . . . . Secondary Targets 3 | . 1 . . . 2 . . . . . Max Gunslinging Chain 1 | . 1 . . . 1 . . . . . Shots Hit Robots 429 | . 46 . . 26 101 53 106 1 72 24 Core Hits 312 | . 20 . . 33 140 16 35 1 55 12 Critical Kills 4 | . . . . . 1 . 1 . 1 1 Critical Parts Destroyed . | . . . . . . . . . . . Critical Strikes 11 | . 1 . . . 6 . 2 . 1 1 Burn 7 | . 1 . . . 5 . 1 . . . Meltdown 3 | . . . . . . . 1 . 1 1 Destroy 1 | . . . . . 1 . . . . . Melee Attacks 7 | . . . . . . . . 2 5 . Impact 7 | . . . . . . . . 2 5 . Slashing . | . . . . . . . . . . . Piercing . | . . . . . . . . . . . Sneak Attacks . | . . . . . . . . . . . Combat Hostiles . | . . . . . . . . . . . Follow-up Attacks . | . . . . . . . . . . . Damage Inflicted 11544 | . 483 . . 362 2895 1449 2692 35 2931 697 Guns 3033 | . 479 . . 362 1562 . 137 . 493 . Cannons 5782 | . . . . . . 1449 2538 35 1318 442 Explosions 2665 | . . . . . 1317 . . . 1120 228 Melee . | . . . . . . . . . . . Ramming 64 | . 4 . . . 16 . 17 . . 27 Kinetic 667 | . 152 . . . 171 . . . 236 108 Thermal 8079 | . 258 . . 362 1391 1449 2675 35 1575 334 Explosive 1317 | . . . . . 1317 . . . . . Electromagnetic 1417 | . 69 . . . . . . . 1120 228 Impact . | . . . . . . . . . . . Slashing . | . . . . . . . . . . . Piercing . | . . . . . . . . . . . Highest Corruption 4 | . . . . . . . . . . 4 Average Corruption 1 | . . . . . . . . . . 1 Corruption Purged . | . . . . . . . . . . . Corruption Blocked . | . . . . . . . . . . . Effects 6 | . . . . . . . . . . 6 Message Errors 2 | . . . . . . . . . . 2 Heat Flow Errors 1 | . . . . . . . . . . 1 Energy Discharges 2 | . . . . . . . . . . 2 Data Loss (minor) 1 | . . . . . . . . . . 1 Overload Shots . | . . . . . . . . . . . Overflow Damage 89 | . . . . . 9 . 42 . 38 . Projectiles 51 | . . . . . . . 42 . 9 . Explosions 38 | . . . . . 9 . . . 29 . Melee . | . . . . . . . . . . . Knockbacks 10 | . . . . . . . . . . 10 Impact . | . . . . . . . . . . . Kinetic 10 | . . . . . . . . . . 10 Secondary . | . . . . . . . . . . . Self-Inflicted Damage 113 | . . . . . 61 . . . 52 . Shots 5 | . . . . . 3 . . . 2 . Rammed 8 | . . . . . 2 . 2 . . 4 Targets Rammed 11 | . 2 . . . 3 . 2 . . 4 Kicked 2 | . 1 . . . 1 . . . . . Crushed 1 | . 1 . . . . . . . . . Highest Temperature 422 | . 306 . . 276 174 199 198 . 422 270 Average Temperature 94 | . 133 . . 108 50 94 59 . 122 119 Received Heat Transfer 3109 | . 177 . . 196 873 225 633 . 581 424 Effects 2 | . 2 . . . . . . . . . Energy Bleed 1 | . 1 . . . . . . . . . Interference 1 | . 1 . . . . . . . . . Siege Activations . | . . . . . . . . . . . Robots Corrupted 2 | . . . . . . . . . 2 . Combat Hostiles 2 | . . . . . . . . . 2 . Parts Fried 3 | . . . . . . . . . 3 . Impact Corruptions . | . . . . . . . . . . . Robots Melted 3 | . . . . . . . 1 . 1 1 Combat Hostiles 3 | . . . . . . . 1 . 1 1 Parts Melted 22 | . 2 . . . 7 2 6 . 4 1 Heat Transferred 11674 | . 797 . . 445 2779 1693 3848 37 1575 500 Parts Sabotaged . | . . . . . . . . . . . Parts Stolen . | . . . . . . . . . . . Parts Stripped . | . . . . . . . . . . . Power Chain Reactions 1 | . . . . . . . . . 1 . Missiles Intercepted . | . . . . . . . . . . . Alert | -11 -10 -10 -10 -9 -8 -8 -8 -7 -7 -7 ------- Run | Jun Mat Min Exi Min Mat Gar Mat Fac Gar Fac Peak Influence 1286 | . 210 34 . 60 535 653 726 118 1286 718 Initial 674 | . . 34 . . 7 222 317 118 23 674 Average 398 | . 102 34 . 13 257 421 309 80 700 671 Maximum Alert Level 4 | . 1 . . . 2 2 3 . 4 3 Low Security (%) 29 | . 91 100 . 100 32 . 19 100 9 . Level 1 27 | . 8 . . . 44 38 63 . 14 . Level 2 26 | . . . . . 22 61 16 . 20 65 Level 3 11 | . . . . . . . . . 36 34 Level 4 4 | . . . . . . . . . 19 . Level 5 . | . . . . . . . . . . . High Security . | . . . . . . . . . . . Max Security . | . . . . . . . . . . . Squads Dispatched 17 | . 3 . . . 7 . 3 1 . 3 Investigation 5 | . 2 . . . 1 . 2 . . . Extermination 3 | . . . . . . . . 1 . 2 Reinforcement 5 | . 1 . . . 3 . 1 . . . Assault 1 | . . . . . . . . . . 1 Garrison 3 | . . . . . 3 . . . . . Intercept . | . . . . . . . . . . . Searches Triggered . | . . . . . . . . . . . Construction Impeded 2 | . . . . . 2 . . . . . Haulers Reinforced . | . . . . . . . . . . . Active Scanning Responses . | . . . . . . . . . . . Cargo Convoy Interrupts 1 | . . . . . . . . . . 1 Stealth | -11 -10 -10 -10 -9 -8 -8 -8 -7 -7 -7 --------- Run | Jun Mat Min Exi Min Mat Gar Mat Fac Gar Fac Distress Signals 12 | . 2 . . . 4 . 6 . . . Communications Jammed . | . . . . . . . . . . . Distress Signals . | . . . . . . . . . . . Times Spotted 177 | . 20 . . 7 38 10 38 1 37 26 Peak Tracking Total 11 | . 5 . . 4 7 3 5 1 4 11 Tactical Retreats 12 | . 1 . . . 1 . 1 . 7 2 Traps | -11 -10 -10 -10 -9 -8 -8 -8 -7 -7 -7 ------- Run | Jun Mat Min Exi Min Mat Gar Mat Fac Gar Fac Traps Triggered 20 | . 2 . . . . 7 2 . 9 . Indirectly 3 | . . . . . . . . . 3 . Trap Hack Attempts . | . . . . . . . . . . . Triggered . | . . . . . . . . . . . Disarmed . | . . . . . . . . . . . Reprogrammed . | . . . . . . . . . . . Reused . | . . . . . . . . . . . Traps Extracted . | . . . . . . . . . . . Installed . | . . . . . . . . . . . Triggered . | . . . . . . . . . . . Machines | -11 -10 -10 -10 -9 -8 -8 -8 -7 -7 -7 ---------- Run | Jun Mat Min Exi Min Mat Gar Mat Fac Gar Fac Machines Disabled 16 | . . . . . 2 5 2 . 7 . Max in Single Turn 3 | . . . . . 1 1 . . 3 . Garrison Relay 5 | . . . . . . 3 . . 2 . Machines Repaired . | . . . . . . . . . . . Machines Sabotaged . | . . . . . . . . . . . Overloaded Fab Kills . | . . . . . . . . . . . Hacking | -11 -10 -10 -10 -9 -8 -8 -8 -7 -7 -7 --------- Run | Jun Mat Min Exi Min Mat Gar Mat Fac Gar Fac Machines Accessed 21 | . 3 . 1 . 5 4 3 2 1 2 Terminals 16 | . 3 . . . 4 4 3 1 1 . Fabricators 1 | . . . . . . . . . . 1 Repair Stations . | . . . . . . . . . . . Recycling Units . | . . . . . . . . . . . Scanalyzers . | . . . . . . . . . . . Garrison Access 3 | . . . . . 1 . . 1 . 1 Total Hacks 41 | . 9 . 1 . 11 6 7 2 1 4 Successful 13 | . 3 . 1 . 3 2 . 1 1 2 Failed 28 | . 6 . . . 8 4 7 1 . 2 Catastrophic 8 | . . . . . 4 2 1 1 . . Database Lockouts . | . . . . . . . . . . . Manual 20 | . 1 . 1 . 10 . 7 1 . . Terminals 34 | . 9 . . . 10 6 7 1 1 . Fabricators 3 | . . . . . . . . . . 3 Repair Stations . | . . . . . . . . . . . Recycling Units . | . . . . . . . . . . . Scanalyzers . | . . . . . . . . . . . Garrison Access 3 | . . . . . 1 . . 1 . 1 Terminal Hacks 9 | . 3 . 1 . 2 2 . . 1 . Prototype ID Bank 2 | . 2 . . . . . . . . . Branch Access Points 1 | . . . . . 1 . . . . . Emergency Access Points 2 | . . . . . . 1 . . 1 . Unreport Threat 1 | . . . . . 1 . . . . . Zone Layout 1 | . 1 . . . . . . . . . Patrol Navigation 1 | . . . . . . 1 . . . . EX-Prototype ID Bank 1 | . . . 1 . . . . . . . Fabricator Hacks 1 | . . . . . . . . . . 1 Build 1 | . . . . . . . . . . 1 Repair Station Hacks . | . . . . . . . . . . . Recycling Unit Hacks . | . . . . . . . . . . . Scanalyzer . | . . . . . . . . . . . Garrison Access Hacks 3 | . . . . . 1 . . 1 . 1 Unlock Access 3 | . . . . . 1 . . 1 . 1 Unauthorized Hacks . | . . . . . . . . . . . Terminals . | . . . . . . . . . . . Fabricators . | . . . . . . . . . . . Repair Stations . | . . . . . . . . . . . Recycling Units . | . . . . . . . . . . . Scanalyzers . | . . . . . . . . . . . Garrison Access . | . . . . . . . . . . . Data Cores Recovered . | . . . . . . . . . . . Used . | . . . . . . . . . . . Hacking Detections 18 | . 3 . . . 4 3 3 2 1 2 Full Trace Events 2 | . 1 . . . 1 . . . . . Feedback Events . | . . . . . . . . . . . Feedback Blocked . | . . . . . . . . . . . Robot Schematics Acquired . | . . . . . . . . . . . Robots Built . | . . . . . . . . . . . Authchips . | . . . . . . . . . . . Time . | . . . . . . . . . . . Total Robot Build Rating . | . . . . . . . . . . . Part Schematics Acquired . | . . . . . . . . . . . Parts Built 2 | . . . . . . . . . . 2 Authchips . | . . . . . . . . . . . Time 53 | . . . . . . . . . . 53 Total Part Build Rating 12 | . . . . . . . . . . 12 Parts Repaired . | . . . . . . . . . . . Time . | . . . . . . . . . . . Parts Recycled . | . . . . . . . . . . . Recycled Matter . | . . . . . . . . . . . Retrieved Matter . | . . . . . . . . . . . Retrieved Components . | . . . . . . . . . . . Parts Scanalyzed . | . . . . . . . . . . . Part Schematics Acquired . | . . . . . . . . . . . Parts Damaged . | . . . . . . . . . . . Bothacking | -11 -10 -10 -10 -9 -8 -8 -8 -7 -7 -7 ------------ Run | Jun Mat Min Exi Min Mat Gar Mat Fac Gar Fac Used RIF Installer 2 | . . . . . . 1 . . 1 . Coupler Efficiency 1 | . . . . . . . . . 1 . Robots Hacked 2 | . . . . . . 1 1 . . . Non-combat 1 | . . . . . . . 1 . . . Combat 1 | . . . . . . 1 . . . . Robot Hacks Applied 6 | . . . . . . 1 5 . . . purge_threat 4 | . . . . . . . 4 . . . find_terminals 1 | . . . . . . . 1 . . . overwrite_iff 1 | . . . . . . 1 . . . . Relay Couplers Released 21 | . . . . . . 15 . . 6 . Machine Destruction 18 | . . . . . . 12 . . 6 . Programmers 3 | . . . . . . 3 . . . . Attached 3 | . . . . . . 1 2 . . . Fabnet Peak Effective % . | . . . . . . . . . . . Robots Rewired 9 | . . . . . . 6 . . 3 . Allies Hacked . | . . . . . . . . . . . Hacks Repelled . | . . . . . . . . . . . Allies | -11 -10 -10 -10 -9 -8 -8 -8 -7 -7 -7 -------- Run | Jun Mat Min Exi Min Mat Gar Mat Fac Gar Fac Total Allies 12 | . . . . 2 . 7 . . 3 . Largest Group 3 | . . . . 2 . 3 2 . 3 . Highest-Rated Group 72 | . . . . 43 . 72 48 . 36 . Highest-Rated Ally 31 | . . . . 31 . 24 24 . 12 . Total Orders . | . . . . . . . . . . . Ally Attacks 71 | . . . . 3 . 8 43 . 17 . Total Damage 1656 | . . . . 64 . 115 1291 . 186 . Kills 14 | . . . . . . 1 13 . . . Allies Corrupted . | . . . . . . . . . . . Allies Melted . | . . . . . . . . . . . Intel | -11 -10 -10 -10 -9 -8 -8 -8 -7 -7 -7 ------- Run | Jun Mat Min Exi Min Mat Gar Mat Fac Gar Fac Robot Analysis Total . | . . . . . . . . . . . Derelict Logs Recovered . | . . . . . . . . . . . Drone Launches . | . . . . . . . . . . . Drone Recoveries . | . . . . . . . . . . . Exploration | -11 -10 -10 -10 -9 -8 -8 -8 -7 -7 -7 ------------- Run | Jun Mat Min Exi Min Mat Gar Mat Fac Gar Fac Turns Passed 9744 | . 1039 80 405 250 885 1692 1793 623 2234 743 Spaces Moved 3716 | 1 548 49 237 73 285 730 631 206 710 246 Core . | . . . . . . . . . . . Treads 2713 | . 463 49 237 22 . 149 631 206 710 246 Legs 802 | 1 85 . . . 135 581 . . . . Wheels 201 | . . . . 51 150 . . . . . Hover . | . . . . . . . . . . . Flight . | . . . . . . . . . . . Fastest Speed 110 | 120 120 160 160 110 110 160 160 240 235 238 Average Speed 197 | 120 153 160 170 153 150 189 210 240 238 239 Slowest Speed 570 | 120 160 160 240 240 190 260 240 240 240 570 Overloaded Moves . | . . . . . . . . . . . Propulsion Burnouts . | . . . . . . . . . . . Robots Hopped . | . . . . . . . . . . . Cave-ins Triggered . | . . . . . . . . . . . Exploration Rate (%) 38 | 2 74 18 61 18 30 73 56 6 76 6 Regions Visited 10 Branch Regions 3 Pre-discovered Areas . | . . . . . . . . . . . Known Exits Taken 2 | . . . . . 1 . . 1 . . Unknown Exits Taken 6 | 1 1 1 1 1 . . 1 . . . Scrap Searched . | . . . . . . . . . . . Spaces Dug 2 | . . . . . . . . 2 . . Terrain Destroyed 129 | . . . . . 82 . 37 3 4 3 Melee 2 | . . . . . . . . 2 . . Projectile 41 | . . . . . . . 37 1 . 3 AOE 86 | . . . . . 82 . . . 4 . Terrain Rammed . | . . . . . . . . . . . Walls Destroyed . | . . . . . . . . . . . Machines Disabled . | . . . . . . . . . . . Actions | -11 -10 -10 -10 -9 -8 -8 -8 -7 -7 -7 --------- Run | Jun Mat Min Exi Min Mat Gar Mat Fac Gar Fac Total 5445 | . 671 51 240 180 602 971 940 328 1101 361 Wait 812 | . 34 3 . 83 162 7 169 108 183 63 Move 3706 | . 547 48 236 72 284 729 630 205 709 246 Hop . | . . . . . . . . . . . Pick Up 102 | . 10 . 1 4 25 26 8 3 18 7 Fast Attach 36 | . 10 . . 1 5 6 9 1 3 1 Attach 47 | . . . . 3 14 5 7 2 11 5 Detach 5 | . 2 . . . 2 . 1 . . . Swap 94 | . 5 . 1 1 15 8 19 4 30 11 Drop 96 | . 12 . 2 . 11 33 15 2 14 7 Fire 369 | . 49 . . 16 81 47 80 1 78 17 Melee 7 | . . . . . . . . 2 5 . Ram 2 | . . . . . 2 . . . . . Kick 2 | . 1 . . . 1 . . . . . Crush 7 | . 1 . . . . . 2 . . 4 Escape Stasis 23 | . . . . . . 15 . . 8 . Rewire 137 | . . . . . . 95 . . 42 . Trap . | . . . . . . . . . . . Miscellaneous . | . . . . . . . . . . . Route ------- -11/Junkyard -10/Materials (discovered 4 exits: [*Mat x3] / [*Min]) -10/Mines (discovered 2 exits: [*Mat] / *Exi) -10/Exiles -9/Mines -8/Materials -8/Garrison (discovered 3 exits: *Mat x3) -8/Materials -7/Factory -7/Garrison (discovered 4 exits: *Fac x4) -7/Factory (discovered 1 exit: Gar) History --------- Turn | Location | Event 1 | -11/Junkyard | Discovered new exit (range 0) 1 | -11/Junkyard | Entered Materials 300 | -10/Materials | Build established: Mutant 396 | -10/Materials | Discovered new exit (range 8) 484 | -10/Materials | Discovered new exit (range 4) 668 | -10/Materials | Discovered new exit (range 3) 1024 | -10/Materials | Discovered new exit (range 7) 1040 | -10/Materials | Entered Mines 1071 | -10/Mines | Discovered new exit (range 9) 1112 | -10/Mines | Deemed a non-threat by the Exiles lab entrance 1114 | -10/Mines | Discovered new exit (range 5) 1120 | -10/Mines | Entered Exiles 1160 | -10/Exiles | Met 8R-AWN 1188 | -10/Exiles | Met EX-HEX 1231 | -10/Exiles | Met EX-BIN 1253 | -10/Exiles | Aligned with FarCom system 1255 | -10/Exiles | Given EX-Vault access code 1292 | -10/Exiles | Opened EX-Vault 1303 | -10/Exiles | Found Superbattery 1338 | -10/Exiles | Warned to stay clear of 0b10 Research branches 1389 | -10/Exiles | Met EX-DEC 1496 | -10/Exiles | Discovered new exit (range 14) 1525 | -10/Exiles | Left Exiles lab with Superbattery 1525 | -10/Exiles | Entered Mines 1561 | -9/Mines | Excavation squad dispatched 1561 | -9/Mines | A large section of the Mines collapsed 1684 | -9/Mines | Core integrity fell below 50% 1701 | -9/Mines | Core integrity fell below 20% 1723 | -9/Mines | Lost 4 parts (1p2n1w) 1760 | -9/Mines | Discovered new exit (range 14) 1775 | -9/Mines | Entered Materials 1775 | -8/Materials | Evolved 4 slots: Propulsion x2, Utility x2 2239 | -8/Materials | Lost 4 parts (1n1u2w) 2289 | -8/Materials | Build established: Scavenger-Mutant 2369 | -8/Materials | Garrison activated, responded to threat 2395 | -8/Materials | Lost 3 parts (1p2n) 2654 | -8/Materials | Identified exit to Garrison 2660 | -8/Materials | Entered Garrison 2660 | -8/Garrison | Warlord forces raided the area 2698 | -8/Garrison | Triggered checkpoint 2743 | -8/Garrison | Warlord forces retreated 2748 | -8/Garrison | Triggered checkpoint 2748 | -8/Garrison | Garrison Relay disabled 2749 | -8/Garrison | Triggered checkpoint 2768 | -8/Garrison | Triggered checkpoint 2768 | -8/Garrison | Triggered checkpoint 2830 | -8/Garrison | Installed Relay Interface Framework 3142 | -8/Garrison | Discovered new exit (range 10) 3206 | -8/Garrison | Triggered checkpoint 3222 | -8/Garrison | Core integrity fell below 50% 3288 | -8/Garrison | Triggered checkpoint 3315 | -8/Garrison | Garrison Relay disabled 3635 | -8/Garrison | Discovered new exit (range 10) 3717 | -8/Garrison | Spotted B-75 Beast 3745 | -8/Garrison | Destroyed B-75 Beast 3788 | -8/Garrison | Lost 3 parts (1p1n1u) 3914 | -8/Garrison | Triggered checkpoint 3933 | -8/Garrison | Discovered new exit (range 5) 4160 | -8/Garrison | Triggered checkpoint 4174 | -8/Garrison | Garrison Relay disabled 4352 | -8/Garrison | Entered Materials 4352 | -8/Materials | Accompanied by 2 allies 4658 | -8/Materials | Discovered new exit (range 14) 5073 | -8/Materials | Core integrity fell below 20% 5937 | -8/Materials | Build established: Mutant 6145 | -8/Materials | Entered Factory 6145 | -7/Factory | Evolved 2 slots: Utility x2 6446 | -7/Factory | Build established: Skirmisher 6682 | -7/Factory | Identified exit to Garrison 6768 | -7/Factory | Entered Garrison 6960 | -7/Garrison | Triggered checkpoint 6974 | -7/Garrison | Heavy support dispatched to Factory 7021 | -7/Garrison | Discovered new exit (range 3) 7145 | -7/Garrison | Build established: Mutant 7158 | -7/Garrison | Heavy support dispatched to Factory 7218 | -7/Garrison | Triggered checkpoint 7391 | -7/Garrison | Discovered new exit (range 9) 7626 | -7/Garrison | Triggered checkpoint 7727 | -7/Garrison | Heavy support dispatched to Factory 7768 | -7/Garrison | Lost 6 parts (1p3n1u1w) 7939 | -7/Garrison | Discovered new exit (range 15) 8140 | -7/Garrison | Heavy support dispatched to Factory 8205 | -7/Garrison | H-XX Assembler disabled 8462 | -7/Garrison | Triggered checkpoint 8508 | -7/Garrison | Garrison Relay disabled 8759 | -7/Garrison | Expanded RIF knowledge: Coupler Efficiency 8900 | -7/Garrison | Garrison Relay disabled 8964 | -7/Garrison | Discovered new exit (range 15) 9002 | -7/Garrison | Entered Factory 9307 | -7/Factory | Fabricated Adv. Plasma Cannon (x2) 9402 | -7/Factory | First assault squad dispatched 9674 | -7/Factory | Identified exit to Garrison 9722 | -7/Factory | Build established: Bothacker-Mutant 9722 | -7/Factory | Cargo convoy interrupted 9745 | -7/Factory | Core integrity fell below 50% 9745 | -7/Factory | Self-destructed Last Messages --------------- 09730_ Penetrated by Slug. 09730_ Adv. Treads destroyed. 09732_ Imp. Heavy Armor Plating destroyed. 09733_ Penetrated by Slug. 09734_ K-01 Serf cleans the Nuclear Reactor. 09735_ M-28 Smith repairs H-55 Commando. 09736_ Lgt. Treads destroyed. 09736_ Imp. Shield Generator destroyed. 09737_ Slug penetrates Wall. 09738_ Lgt. Treads destroyed. 09739_ Adv. Plasma Cannon destroyed. 09739_ K-01 Serf cleans the Nuclear Reactor. 09739_ Imp. Light Armor Plating destroyed. 09740_ Penetrated by Slug. 09741_ Enh. Nuclear Core destroyed. 09743_ K-01 Serf cleans the Nuclear Reactor. 09743_ Penetrated by Slug. 09744_ Arm. Treads destroyed. 09744_ P-60 Hacker resets A-27 Freighter, system corruption cleaned. 09745_ A-27 Freighter enters garrison. Map ----- +----------------------------------------------------+ | ?????????????????????????????????????????????????? | | ?????????????????????????????????????????????????? | | ?????????????????????????????????????????????????? | | ?????????????????????????????????????????????????? | | ?????????????????????????????????????????????????? | | ?????????????????????????????????????????????????? | | ?????????????????????????????????????????????????? | | ?????????????????????????????????????????????????? | | ?????????????????????????????????????????????????? | | ?????????????????????????????????????????????????? | | ?????????????????????????????????????????????????? | | ?????????????????????????????????????????????????? | | ?????????????????????????????????????????????????? | | ?????????????????????????????????????????????????? | | ??????????########???????????????????????????????? | | ??????????# #???????????????????????????????? | | ??????????# #???????????????????????????????? | | ??????????# #?????????????????????????#????#? | | ??????????# !! #??????????????????????????#??#?? | | ??????????# ![ #???????????????????????????#??#? | | ???????????? ???????????????????##??##???#??#? | | ?????????????#+#######???##########?##??##??###?#? | | ?????????????# #???# ""G"" ##??#?##?##?###? | | ?????????????# ##### "">"" #?#?##??######## | | ?????????????# !!! ##;;; #??##?##???#?### | | ?????????????#/ !!! @ ##???########?## | | ?????????????# !!! ;i #?#?#####?###### | | ?????????????# ; | """ ##??#####?###### | | ?????????????# h ; """ /################ | | ?????????????# xh i ; """ #?############## | | ?????????????#[ pp # #?#####?######## | | ?????????????# xp ##################"##T ## | | ????????????# m """ | | ????????????# k "R" | | ????????????#% """x""" """ " " [ | | ????????????+% """ """ """ % %* | | ??????????? # """ """ """ =|! * | | ????????????# ? """ ############"##"#+ | | ???????????????? ########?#### !* | | ?????????????????" """ """ """ ############# ! | | ?????????????????" """ """ """ #?####??##### | | ?????????????????"??"" """ """ ###??##?##### | | ????????????????????"" """ """ ############# " "" | | ??????????????????????? #?########### "R"" | | ????????????????????????"" """ #??########## """ | | ????????????????????????"" """ #?#?######### | | ?????????????????????????" ??" ##?############### | | ????????????????????????? ??" #???##? ?? | | ????????????????????????? ?? #??##? | | ?????????????????????????" ??? #????? | +----------------------------------------------------+ Best States ------------- Heat Dissipation 67 Coolant Potential 65 Energy Generation 25 Energy Capacity 350 Matter Stores 300 Matter Capacity 300 Sight Range 16 Terrain Scan Range 16 Terrain Scan Density 210 Armor Coverage 600 Evasion (%) 55 Targeting Accuracy 8 Recoil Reduction 4 Particle Charging 15 Kinecelleration 30 Relay Coupler Types 1 Relay Coupler Value 26 Item Schematics ----------------- None Robot Schematics ------------------ None Fabricated ------------ Adv. Plasma Cannon | x2 | -7/Factory | Preloaded Alien Tech Used ----------------- None Achievements -------------- None Challenges ------------ None Game ------ Seed StasisDeliveryDatajack Manual? 0 Play Time 01:25:00 Cumulative 61.3 hours Start 2023.03.13 @ 18:53:02 End 2023.03.13 @ 21:30:42 Sessions 1 Manual Loads 0 Difficulty Rogue Special Mode None Game No. 67 Rogue 67 Adventurer 0 Explorer 0 Win Type - Total 0 Types 0/0/0/0/0/0/0/0/0 Lore% 40 Gallery% 52 Achievement% 46 Wizard Run 0 Options --------- ASCII 0 Keyboard 0 Movement Mouse Keybinds 0 Fullscreen 1 Font 18/TerminusBold Map View 76x50 Tactical HUD 1 Map Filters NONE Filters NONE Steam 1 RUN: 6b0c5116-e1c3-4067-aaeb-54ee1eac8940